Workbook

Sheet Лист1
A1: Школа | C1: Белебеевская КШ для слабовидящих детей | F1: Утвердил: | G1: должность | H1: ИП Горбачевская И.И.-аутсорсер
A2: Типовое примерное меню приготавливаемых блюд | G2: фамилия | H2: Горбачевская И.И.
A3: Возрастная категория | E3: 7-11 лет | G3: дата | H3: 1 | I3: 3 | J3: 2026
H4: день | I4: месяц | J4: год
A5: Неделя | B5: День недели | C5: Прием пищи | D5: Раздел меню | E5: Блюда | F5: Вес блюда, г | G5: Белки | H5: Жиры | I5: Углеводы | J5: Калорийность | K5: № рецептуры | L5: Цена
A6: 1 | B6: 1 | C6: Завтрак | D6: гор.блюдо | E6: Котлета рубленая из птицы с овощным подливом | F6: 90 | G6: 7.5 | H6: 9.3 | I6: 8.72 | J6: 178 | K6: 82 | L6: 57.6
D7: гор.блюдо | E7: Каша гречневая вязкая с маслом | F7: 160 | G7: 4.81 | H7: 8.49 | I7: 21.54 | J7: 181.6 | K7: 302.01 | L7: 10.08
D8: гор.напиток | E8: Чай витаминизированный | F8: 200 | G8: 0 | H8: 0 | I8: 9.7 | J8: 39 | K8: 282.11 | L8: 4.28
D9: хлеб | E9: Хлеб пшен.обогащ.витам. для д/п | F9: 50 | G9: 4 | H9: 0.5 | I9: 27.5 | J9: 130 | K9: 420.06 | L9: 5
D10: фрукты
D13: итого | F13: =SUM(F6:F12) -> 500 | G13: =SUM(G6:G12) -> 16.31 | H13: 18.29 | I13: 67.46 | J13: 528.6 | L13: =SUM(L6:L12) -> 76.96
A14: =A6 -> 1 | B14: =B6 -> 1 | C14: Обед | D14: закуска
D15: 1 блюдо | E15: Щи из свежей капусты со сметаной | F15: 210 | G15: 1.68 | H15: 4.86 | I15: 7.36 | J15: 80.73 | K15: 53.42 | L15: 12
D16: 2 блюдо | E16: Мясо птицы,припущенное в томатном соусе | F16: 90 | G16: 19.83 | H16: 17.99 | I16: 2.93 | J16: 251.97 | K16: 233.23 | L16: 54.4
D17: гарнир | E17: Макаронные изделия отварные с маслом | F17: 155 | G17: 5.82 | H17: 4.31 | I17: 37.08 | J17: 210.5 | K17: 211.05 | L17: 12.6
D18: напиток | E18: Чай с сахаром | F18: 200 | G18: 0 | H18: 0 | I18: 9.98 | J18: 39.9 | K18: 283 | L18: 1.74
D19: хлеб бел. | E19: Хлеб пшен.обогащ.витам. для д/п | F19: 40 | G19: 3.2 | H19: 0.4 | I19: 22 | J19: 104 | K19: 420.02 | L19: 3.69
D20: хлеб черн. | E20: Хлеб ржано-пшеничный для д/п | F20: 40 | G20: 3.2 | H20: 0.4 | I20: 18.4 | J20: 88 | K20: 421.11 | L20: 4
D23: итого | F23: =SUM(F14:F22) -> 735 | G23: =SUM(G14:G22) -> 33.73 | H23: 27.96 | I23: 97.75 | J23: 775.1 | L23: =SUM(L14:L22) -> 88.43
A24: =A6 -> 1 | B24: =B6 -> 1 | C24: Итого за день: | F24: =F13+F23 -> 1235 | G24: =G13+G23 -> 50.04 | H24: =H13+H23 -> 46.25 | I24: 165.21 | J24: 1303.7 | L24: =L13+L23 -> 165.39
A25: 1 | B25: 2 | C25: Завтрак | D25: гор.блюдо | E25: Тефтели куриные в томатном соусе | F25: 100 | G25: 8.2 | H25: 8.52 | I25: 3.54 | J25: 145 | K25: 528пф | L25: 58.58
D26: гор.блюдо | E26: Картофельное пюре | F26: 150 | G26: 3.1 | H26: 6.09 | I26: 20.1 | J26: 152.72 | K26: 138.05 | L26: 10.27
D27: гор.напиток | E27: Чай с лимоном и сахаром | F27: 200 | G27: 0.06 | H27: 0.01 | I27: 10.19 | J27: 42.28 | K27: 285 | L27: 3.11
D28: хлеб | E28: Хлеб пшен.обогащ.витам.для д/п | F28: 50 | G28: 4 | H28: 0.5 | I28: 27.5 | J28: 130 | K28: 420.06 | L28: 5
D29: фрукты
D32: итого | F32: =SUM(F25:F31) -> 500 | G32: =SUM(G25:G31) -> 15.36 | H32: =SUM(H25:H31) -> 15.12 | I32: =SUM(I25:I31) -> 61.33 | J32: =SUM(J25:J31) -> 470 | L32: 76.96
A33: =A25 -> 1 | B33: =B25 -> 2 | C33: Обед | D33: закуска | E33: Салат из моркови с зел.горош. | F33: 60 | G33: 1.14 | H33: 3.66 | I33: 3.48 | J33: 52 | K33: КЗ25201 | L33: 8.95
D34: 1 блюдо | E34: Суп картофельный с горохом и гренками | F34: 215 | G34: 6.62 | H34: 3.88 | I34: 28.57 | J34: 175.69 | K34: 129.08 | L34: 12.13
D35: 2 блюдо | E35: Жаркое по-домашнему с птицей | F35: 175 | G35: 18 | H35: 16 | I35: 15 | J35: 181 | K35: 118.08 | L35: 41.51
D36: гарнир | L36: 0
D37: сладкое | E37: Витаминизированный кисель | F37: 200 | G37: 0 | H37: 0 | I37: 23.5 | J37: 95 | K37: 305.11 | L37: 19,,5
D38: хлеб бел. | E38: Хлеб пшен.обогащ.витам. для д/п | F38: 50 | G38: 4 | H38: 0.5 | I38: 27.5 | J38: 130 | K38: 420.06 | L38: 2.34
D39: хлеб черн. | E39: Хлеб ржано-пшеничный для д/п | F39: 40 | G39: 3.2 | H39: 0.4 | I39: 18.4 | J39: 88 | K39: 421.11 | L39: 4
D42: итого | F42: =SUM(F33:F41) -> 740 | G42: =SUM(G33:G41) -> 32.96 | H42: =SUM(H33:H41) -> 24.44 | I42: =SUM(I33:I41) -> 116.45 | J42: =SUM(J33:J41) -> 721.69 | L42: 88.43
A43: =A25 -> 1 | B43: =B25 -> 2 | C43: Итого за день: | F43: =F32+F42 -> 1240 | G43: =G32+G42 -> 48.32 | H43: =H32+H42 -> 39.56 | I43: =I32+I42 -> 177.78 | J43: =J32+J42 -> 1191.69 | L43: =L32+L42 -> 165.39
A44: 1 | B44: 3 | C44: Завтрак | D44: гор.блюдо | E44: Каша овсяная молочная жидкая | F44: 185 | G44: 6.8 | H44: 8.9 | I44: 28.3 | J44: 221 | K44: К000*5ш | L44: 24.72
D45: гор.блюдо | E45: Запеканка из творога со сгущ.мол. | F45: 85 | G45: 13.75 | H45: 9.9 | I45: 17.55 | J45: 215 | K45: ТБ00*8Л | L45: 47.5
D46: гор.напиток | E46: Чай с сахаром | F46: 200 | G46: 0 | H46: 0 | I46: 9.98 | J46: 39.9 | K46: 283 | L46: 1.74
D47: хлеб | E47: Хлеб пшен.обогащ.витам.для д/п | F47: 30 | G47: 2.4 | H47: 0.3 | I47: 16.5 | J47: 78 | K47: 1.1 | L47: 3
D51: итого | F51: =SUM(F44:F50) -> 500 | G51: =SUM(G44:G50) -> 22.95 | H51: =SUM(H44:H50) -> 19.1 | I51: =SUM(I44:I50) -> 72.33 | J51: =SUM(J44:J50) -> 553.9 | L51: 76.96
A52: =A44 -> 1 | B52: =B44 -> 3 | C52: Обед | D52: закуска
D53: 1 блюдо | E53: Борщ с капустой и картофелем со сметаной | F53: 260 | G53: 2.03 | H53: 5.67 | I53: 10.16 | J53: 100.62 | K53: 56.13 | L53: 12.36
D54: 2 блюдо | E54: Биточки из мяса птицы с томатным соусом | F54: 100 | G54: 10.05 | H54: 9.58 | I54: 9.1 | J54: 162.58 | K54: 502.5 | L54: 54.9
D55: гарнир | E55: Каша гречневая вязкая с маслом | F55: 160 | G55: 4.81 | H55: 8.49 | I55: 21.54 | J55: 181.6 | K55: 302.01 | L55: 10.84
D56: напиток | E56: Чай с сахаром | F56: 200 | G56: 0 | H56: 0 | I56: 9.98 | J56: 39.9 | K56: 283 | L56: 1.74
D57: хлеб бел. | E57: Хлеб пшен.обогащ.витам.для д/п | F57: 50 | G57: 4 | H57: 0.5 | I57: 27.5 | J57: 130 | K57: 420.06 | L57: 4.09
D58: хлеб черн. | E58: Хлеб ржано-пшеничный для д/ п | F58: 45 | G58: 3.6 | H58: 0.45 | I58: 20.7 | J58: 99 | K58: 421,07с | L58: 4.5
D61: итого | F61: =SUM(F52:F60) -> 815 | G61: =SUM(G52:G60) -> 24.49 | H61: =SUM(H52:H60) -> 24.69 | I61: =SUM(I52:I60) -> 98.98 | J61: =SUM(J52:J60) -> 713.7 | L61: =SUM(L53:L60) -> 88.43
A62: =A44 -> 1 | B62: =B44 -> 3 | C62: Итого за день: | F62: =F51+F61 -> 1315 | G62: =G51+G61 -> 47.44 | H62: =H51+H61 -> 43.79 | I62: =I51+I61 -> 171.31 | J62: =J51+J61 -> 1267.6 | L62: 165.39
A63: 1 | B63: 4 | C63: Завтрак | D63: гор.блюдо | E63: Ромштекс из мяса птицы с томатным соусом | F63: 100 | G63: 8.2 | H63: 12.21 | I63: 2.74 | J63: 144.8 | K63: 529 | L63: 60.62
D64: гор.блюдо | E64: Макаронные изделия отварные с маслом | F64: 155 | G64: 5.82 | H64: 4.31 | I64: 37.08 | J64: 210.5 | K64: 211.05 | L64: 9.6
D65: гор.напиток | E65: Чай с сахаром | F65: 200 | G65: 0 | H65: 0 | I65: 9.98 | J65: 39.9 | K65: 283 | L65: 1.74
D66: хлеб | E66: Хлеб пшен.обогащ.витам.для д/п | F66: 50 | G66: 4 | H66: 0.5 | I66: 27.5 | J66: 130 | K66: 420.06 | L66: 5
D70: итого | F70: =SUM(F63:F69) -> 505 | G70: =SUM(G63:G69) -> 18.02 | H70: =SUM(H63:H69) -> 17.02 | I70: =SUM(I63:I69) -> 77.3 | J70: =SUM(J63:J69) -> 525.2 | L70: =SUM(L63:L69) -> 76.96
A71: =A63 -> 1 | B71: =B63 -> 4 | C71: Обед | D71: закуска
D72: 1 блюдо | E72: Суп картофельный с клёцками | F72: 250 | G72: 1.72 | H72: 6.27 | I72: 11.83 | J72: 110.91 | K72: 450.13 | L72: 10
D73: 2 блюдо | E73: Котлеты рыбные с томатным соусом | F73: 90 | G73: 13 | H73: 3.1 | I73: 9.9 | J73: 120 | K73: 53пф | L73: 48.78
D74: гарнир | E74: Рис припущенный | F74: 180 | G74: 4.55 | H74: 7.88 | I74: 46.75 | J74: 275.89 | K74: 611.02 | L74: 19.32
D75: напиток | E75: Чай с сахаром | F75: 200 | G75: 0 | H75: 0 | I75: 9.98 | J75: 39.9 | K75: 283 | L75: 1.74
D76: хлеб бел. | E76: Хлеб пшен.обогащ.витам.для д/п | F76: 50 | G76: 4 | H76: 0.5 | I76: 27.5 | J76: 130 | K76: 420.06 | L76: 4.99
D77: хлеб черн. | E77: Хлеб ржано-пшенирчный для д/ п | F77: 40 | G77: 3.2 | H77: 0.4 | I77: 18.4 | J77: 88 | K77: 421.11 | L77: 3.6
D80: итого | F80: =SUM(F71:F79) -> 810 | G80: =SUM(G71:G79) -> 26.47 | H80: =SUM(H71:H79) -> 18.15 | I80: =SUM(I71:I79) -> 124.36 | J80: =SUM(J71:J79) -> 764.7 | L80: 88.43
A81: =A63 -> 1 | B81: =B63 -> 4 | C81: Итого за день: | F81: =F70+F80 -> 1315 | G81: =G70+G80 -> 44.49 | H81: =H70+H80 -> 35.17 | I81: =I70+I80 -> 201.66 | J81: =J70+J80 -> 1289.9 | L81: =L70+L80 -> 165.39
A82: 1 | B82: 5 | C82: Завтрак | D82: гор.блюдо | E82: Каша рисовая молочная вязкая с маслом | F82: 170 | G82: 4.88 | H82: 12.58 | I82: 34.26 | J82: 252.31 | K82: 181.4 | L82: 27.48
D83: гор.блюдо | E83: Сырники из творога с повидлом | F83: 85 | G83: 11.4 | H83: 10.5 | I83: 11.7 | J83: 187 | K83: ТБ0029 | L83: 40.7
D84: гор.напиток | E84: Чай витаминизированный | F84: 200 | G84: 0 | H84: 0 | I84: 9.7 | J84: 39 | K84: 282.11 | L84: 4.28
D85: хлеб | E85: Хлеб пшен.обогащ.витам.для д/п | F85: 45 | G85: 3.6 | H85: 0.45 | I85: 24.75 | J85: 117 | K85: 420.05 | L85: 4.5
D86: фрукты
D89: итого | F89: =SUM(F82:F88) -> 500 | G89: =SUM(G82:G88) -> 19.88 | H89: =SUM(H82:H88) -> 23.53 | I89: =SUM(I82:I88) -> 80.41 | J89: =SUM(J82:J88) -> 595.31 | L89: 76.96
A90: =A82 -> 1 | B90: =B82 -> 5 | C90: Обед | D90: закуска
D91: 1 блюдо | E91: Рассольник ленинградский со сметаной | F91: 210 | G91: 2.09 | H91: 5.01 | I91: 13.9 | J91: 109.77 | K91: 54.47 | L91: 10.44
D92: 2 блюдо | E92: Биточки из мяса птицы с томат. соусом | F92: 100 | G92: 10.05 | H92: 9.58 | I92: 9.1 | J92: 162.58 | K92: 502.5 | L92: 45.31
D93: гарнир | E93: Картофельное пюре | F93: 180 | G93: 3.95 | H93: 6.09 | I93: 26.5 | J93: 177.19 | K93: 138.06 | L93: 22.8
D94: напиток | E94: Чай с сахаром | F94: 200 | G94: 0 | H94: 0 | I94: 9.98 | J94: 39.9 | K94: 283 | L94: 1.74
D95: хлеб бел. | E95: Хлеб пшен.обогащ.витам.для д/п | F95: 50 | G95: 4 | H95: 0.5 | I95: 27.5 | J95: 130 | K95: 420.06 | L95: 4.14
D96: хлеб черн. | E96: Хлеб ржано-пшеничный для д/п | F96: 40 | G96: 3.2 | H96: 0.4 | I96: 18.4 | J96: 88 | K96: 421.11 | L96: 4
D99: итого | F99: =SUM(F90:F98) -> 780 | G99: =SUM(G90:G98) -> 23.29 | H99: =SUM(H90:H98) -> 21.58 | I99: =SUM(I90:I98) -> 105.38 | J99: =SUM(J90:J98) -> 707.44 | L99: 88.43
A100: =A82 -> 1 | B100: =B82 -> 5 | C100: Итого за день: | F100: =F89+F99 -> 1280 | G100: =G89+G99 -> 43.17 | H100: =H89+H99 -> 45.11 | I100: =I89+I99 -> 185.79 | J100: =J89+J99 -> 1302.75 | L100: 165.39
A101: 2 | B101: 1 | C101: Завтрак | D101: гор.блюдо | E101: Макаронные изделия с тёртым сыром | F101: 170 | G101: 10.02 | H101: 15.53 | I101: 35.13 | J101: 301.65 | K101: 211.57 | L101: 38.07
D103: гор.напиток | E103: Какао с молоком | F103: 200 | G103: 3.7 | H103: 3.9 | I103: 26 | J103: 153 | K103: 269 | L103: 18.39
D104: хлеб | E104: Хлеб пшен.обогащ.витам.для д/п | F104: 50 | G104: 4 | H104: 0.5 | I104: 27.5 | J104: 130 | K104: 420.06 | L104: 5
D105: фрукты | E105: Яблоко | F105: 100 | G105: 0.4 | H105: 0.4 | I105: 9.8 | J105: 47 | K105: 38 | L105: 15.5
D108: итого | F108: =SUM(F101:F107) -> 520 | G108: =SUM(G101:G107) -> 18.12 | H108: 20.33 | I108: 98.43 | J108: 631.65 | L108: =SUM(L101:L107) -> 76.96
A109: =A101 -> 2 | B109: =B101 -> 1 | C109: Обед | D109: закуска
D110: 1 блюдо | E110: Суп с мелкошинкованными овощами со сметаной | F110: 260 | G110: 2.14 | H110: 5.76 | I110: 11.48 | J110: 107.06 | K110: 56.21 | L110: 12.18
D111: 2 блюдо | E111: Плов из мяса птицы(филе) | F111: 180 | G111: 15.21 | H111: 16.65 | I111: 37.28 | J111: 359.21 | K111: 131.8 | L111: 66.37
D112: гарнир
D113: напиток | E113: Чай с сахаром | F113: 200 | G113: 0 | H113: 0 | I113: 9.98 | J113: 39.9 | K113: 283 | L113: 1.74
D114: хлеб бел. | E114: Хлеб пшен.обогащ.витам.для д/п | F114: 45 | G114: 3.6 | H114: 0.5 | I114: 25 | J114: 117 | K114: 420.05 | L114: 4.14
D115: хлеб черн. | E115: Хлеб ржано-пшеничный для д/п | F115: 40 | G115: 3.2 | H115: 0.4 | I115: 18.4 | J115: 88 | K115: 421.11 | L115: 4
D118: итого | F118: =SUM(F109:F117) -> 725 | G118: =SUM(G109:G117) -> 24.15 | H118: 23.31 | I118: 102.14 | J118: 711.17 | L118: =SUM(L109:L117) -> 88.43
A119: =A101 -> 2 | B119: =B101 -> 1 | C119: Итого за день: | F119: =F108+F118 -> 1245 | G119: =G108+G118 -> 42.27 | H119: =H108+H118 -> 43.64 | I119: =I108+I118 -> 200.57 | J119: =J108+J118 -> 1342.82 | L119: 165.39
A120: 2 | B120: 2 | C120: Завтрак | D120: гор.блюдо | E120: Тефтели из говядины с томатным соусом | F120: 100 | G120: 8.76 | H120: 12.21 | I120: 8.85 | J120: 180.64 | K120: 527,пф | L120: 60.13
D121: гор.блюдо | E121: Каша гречневая вязкая с маслом | F121: 155 | G121: 4.77 | H121: 4.86 | I121: 21.48 | J121: 148.55 | K121: 302 | L121: 10.59
D122: гор.напиток | E122: Чай с сахаром | F122: 200 | G122: 0 | H122: 0 | I122: 9.98 | J122: 39.9 | K122: 283 | L122: 1.74
D123: хлеб | E123: Хлеб пшен.обогащ.витам.для д/п | F123: 45 | G123: 3.6 | H123: 0.5 | I123: 25 | J123: 117 | K123: 420.05 | L123: 4.5
D124: фрукты
D127: итого | F127: =SUM(F120:F126) -> 500 | G127: =SUM(G120:G126) -> 17.13 | H127: 17.57 | I127: 65.31 | J127: 486.09 | L127: =SUM(L120:L126) -> 76.96
A128: =A120 -> 2 | B128: =B120 -> 2 | C128: Обед | D128: закуска | E128: Салат из свёклы с растительным маслом | F128: 80 | G128: 1.49 | H128: 6.76 | I128: 8.77 | J128: 102 | K128: 25.24 | L128: 7.94
D129: 1 блюдо | E129: Суп- лапша | F129: 250 | G129: 2.77 | H129: 5.29 | I129: 15.61 | J129: 121.35 | K129: 66.62 | L129: 8.53
D130: 2 блюдо | E130: Жаркое по-домашнему с птицей | F130: 175 | G130: 18 | H130: 16 | I130: 15 | J130: 181 | K130: 118.08 | L130: 58.35
D131: гарнир
D132: напиток | E132: Компот из св.плодов | F132: 200 | G132: 0.16 | H132: 0.16 | I132: 18.89 | J132: 78.65 | K132: 294.01 | L132: 5.02
D133: хлеб бел. | E133: Хлеб пшен.обогащ.витам.для д/п | F133: 50 | G133: 4 | H133: 0.5 | I133: 27.5 | J133: 130 | K133: 420.06 | L133: 4.5
D134: хлеб черн. | E134: Хлеб ржано-пшеничный для д/п | F134: 45 | G134: 3.6 | H134: 0.45 | I134: 20.7 | J134: 99 | K134: 421,07с | L134: 4.09
D137: итого | F137: =SUM(F128:F136) -> 800 | G137: =SUM(G128:G136) -> 30.02 | H137: 29.16 | I137: 106.47 | J137: 712 | L137: =SUM(L128:L136) -> 88.43
A138: =A120 -> 2 | B138: =B120 -> 2 | C138: Итого за день: | F138: =F127+F137 -> 1300 | G138: =G127+G137 -> 47.15 | H138: =H127+H137 -> 46.73 | I138: =I127+I137 -> 171.78 | J138: =J127+J137 -> 1198.09 | L138: 165.39
A139: 2 | B139: 3 | C139: Завтрак | D139: гор.блюдо | E139: Плов из мяса птицы(филе) | F139: 170 | G139: 14.37 | H139: 15.78 | I139: 35.23 | J139: 339.82 | K139: 131.79 | L139: 42.94
D141: гор.напиток | E141: Чай с сахаром | F141: 200 | G141: 0 | H141: 0 | I141: 9.98 | J141: 39.9 | K141: 283 | L141: 1.74
D142: хлеб | E142: Хлеб пшен.обогащ.витам.для д/п с маслом | F142: 38 | G142: 2.46 | H142: 6.1 | I142: 16.6 | J142: 130.88 | K142: 401.08 | L142: 16.78
D143: фрукты | E143: Яблоко | F143: 100 | G143: 0.4 | H143: 0.4 | I143: 9.8 | J143: 47 | K143: 38 | L143: 15.5
D146: итого | F146: =SUM(F139:F145) -> 508 | G146: =SUM(G139:G145) -> 17.23 | H146: 22.28 | I146: 71.61 | J146: 557.6 | L146: =SUM(L139:L145) -> 76.96
A147: =A139 -> 2 | B147: =B139 -> 3 | C147: Обед | D147: закуска | E147: Салат картоф.с зелёным горошком | F147: 80 | G147: 2.6 | H147: 8 | I147: 8.1 | J147: 116 | K147: 3 | L147: 7.64
D148: 1 блюдо | E148: Щи из свежей капусты со сметаной | F148: 205 | G148: 1.55 | H148: 4.11 | I148: 7.18 | J148: 72.63 | K148: 53.39 | L148: 12.34
D149: 2 блюдо | E149: Гуляш из мяса птицы | F149: 90 | G149: 14 | H149: 2 | I149: 2 | J149: 79 | K149: 580 | L149: 46.42
D150: гарнир | E150: Макаронные изделия отварные с маслом | F150: 155 | G150: 5.82 | H150: 4.31 | I150: 37.08 | J150: 210.5 | K150: 211.05 | L150: 12.6
D151: напиток | E151: Чай с сахаром | F151: 200 | G151: 0 | H151: 0 | I151: 9.98 | J151: 39.9 | K151: 283 | L151: 1.74
D152: хлеб бел. | E152: Хлеб пшен.обогащ.витам.для д/п | F152: 40 | G152: 3.2 | H152: 0.4 | I152: 22 | J152: 104 | K152: 420.02 | L152: 3.6
D153: хлеб черн. | E153: Хлеб ржано-пшеничный для д/п | F153: 40 | G153: 3.2 | H153: 0.4 | I153: 18.4 | J153: 88 | K153: 421.11 | L153: 4.09
D156: итого | F156: =SUM(F147:F155) -> 810 | G156: =SUM(G147:G155) -> 30.37 | H156: 19.22 | I156: 104.74 | J156: 710.03 | L156: =SUM(L147:L155) -> 88.43
A157: =A139 -> 2 | B157: =B139 -> 3 | C157: Итого за день: | F157: =F146+F156 -> 1318 | G157: =G146+G156 -> 47.6 | H157: =H146+H156 -> 41.5 | I157: =I146+I156 -> 176.35 | J157: =J146+J156 -> 1267.63 | L157: 165.39
A158: 2 | B158: 4 | C158: Завтрак | D158: гор.блюдо | E158: Биточки из мяса птицы с томатным соусом | F158: 90 | G158: 9.95 | H158: 9.48 | I158: 8.57 | J158: 159.02 | K158: 502.53 | L158: 50.36
D159: гор.блюдо | E159: Картофельное пюре | F159: 180 | G159: 3.95 | H159: 6.09 | I159: 26.5 | J159: 177.19 | K159: 138.06 | L159: 19.49
D160: гор.напиток | E160: Чай с лимоном и сахаром | F160: 200 | G160: 0.06 | H160: 0.01 | I160: 10.19 | J160: 42.28 | K160: 285 | L160: 3.11
D161: хлеб | E161: Хлеб пшен.обогащ.витам.для д/п с сыром | F161: 40 | G161: 3.2 | H161: 0.4 | I161: 22 | J161: 104 | K161: 420.02 | L161: 4
D162: фрукты
D165: итого | F165: =SUM(F158:F164) -> 510 | G165: =SUM(G158:G164) -> 17.16 | H165: 15.98 | I165: 67.26 | J165: 482.49 | L165: =SUM(L158:L164) -> 76.96
A166: =A158 -> 2 | B166: =B158 -> 4 | C166: Обед | D166: закуска
D167: 1 блюдо | E167: Свёкольник со сметаной | F167: 210 | G167: 2.25 | H167: 4.93 | I167: 14.74 | J167: 112.75 | K167: 67.32 | L167: 10.67
D168: 2 блюдо | E168: Котлеты рыбные с томатным соусом | F168: 100 | G168: 12.12 | H168: 2.86 | I168: 16.07 | J168: 139 | K168: 54пф | L168: 53.37
D169: гарнир | E169: Каша гречневая вязкая с маслом | F169: 160 | G169: 4.81 | H169: 8.49 | I169: 21.54 | J169: 181.6 | K169: 302.01 | L169: 10.75
D170: сладкое | E170: Кисель из концентрата на плод/ягод экстрактах | F170: 200 | G170: 0 | H170: 0 | I170: 20 | J170: 76 | K170: Н00043с | L170: 5.5
D171: хлеб бел. | E171: Хлеб пшен.обогащ.витам.для д/п | F171: 45 | G171: 3.6 | H171: 0.45 | I171: 24.75 | J171: 117 | K171: 420.05 | L171: 4.05
D172: хлеб черн. | E172: Хлеб ржано-пшеничный для д/п | F172: 40 | G172: 3.2 | H172: 0.4 | I172: 18.4 | J172: 88 | K172: 421.11 | L172: 4.09
D175: итого | F175: =SUM(F166:F174) -> 755 | G175: =SUM(G166:G174) -> 25.98 | H175: 17.13 | I175: 115.5 | J175: 714.35 | L175: =SUM(L166:L174) -> 88.43
A176: =A158 -> 2 | B176: =B158 -> 4 | C176: Итого за день: | F176: =F165+F175 -> 1265 | G176: =G165+G175 -> 43.14 | H176: =H165+H175 -> 33.11 | I176: =I165+I175 -> 182.76 | J176: =J165+J175 -> 1196.84 | L176: 165.39
A177: 2 | B177: 5 | C177: Завтрак | D177: гор.блюдо | E177: Каша молочная "Дружба" с маслом | F177: 165 | G177: 5.17 | H177: 9.81 | I177: 28.05 | J177: 197.9 | K177: 493.03 | L177: 18.85
D178: гор.блюдо | E178: Сырники из творога с повидлом | F178: 85 | G178: 11.4 | H178: 10.5 | I178: 11.7 | J178: 187 | K178: ТБ0029 | L178: 40
D179: гор.напиток | E179: Чай с сахаром | F179: 200 | G179: 0 | H179: 0 | I179: 9.98 | J179: 39.9 | K179: 283 | L179: 1.74
D180: хлеб | E180: Хлеб пшен обогащ.витам.для д/п,масло | F180: 50 | G180: 3.28 | H180: 7.65 | I180: 22.13 | J180: 170.1 | K180: 420.02 | L180: 16.37
D181: фрукты
D184: итого | F184: =SUM(F177:F183) -> 500 | G184: =SUM(G177:G183) -> 19.85 | H184: 27.96 | I184: 71.86 | J184: 594.9 | L184: =SUM(L177:L183) -> 76.96
A185: =A177 -> 2 | B185: =B177 -> 5 | C185: Обед | D185: закуска
D186: 1 блюдо | E186: Суп картофельный с горохом | F186: 250 | G186: 5.91 | H186: 4.55 | I186: 19.49 | J186: 142.91 | K186: 129.2 | L186: 10.5
D187: 2 блюдо | E187: Биточки из мяса птицы с томатным соусом | F187: 90 | G187: 9.95 | H187: 9.48 | I187: 8.57 | J187: 159.02 | K187: 502.53 | L187: 52.62
D188: гарнир | E188: Макаронные изделия отварные с маслом | F188: 160 | G188: 5.86 | H188: 7.93 | I188: 37.14 | J188: 243.55 | K188: 211.47 | L188: 12.6
D189: напиток | E189: Компот из свежих плодов | F189: 200 | G189: 0.16 | H189: 0.16 | I189: 18.89 | J189: 78.65 | K189: 294.01 | L189: 5.02
D190: хлеб бел. | E190: Хлеб пшен.обогащ.витам.для д/п | F190: 40 | G190: 3.2 | H190: 0.4 | I190: 22 | J190: 104 | K190: 420.02 | L190: 3.6
D191: хлеб черн. | E191: Хлеб ржано-пшеничный для д/п | F191: 40 | G191: 3.2 | H191: 0.4 | I191: 18.4 | J191: 88 | K191: 421.11 | L191: 4.09
D194: итого | F194: =SUM(F185:F193) -> 780 | G194: =SUM(G185:G193) -> 28.28 | H194: 22.92 | I194: 124.49 | J194: 816.13 | L194: =SUM(L185:L193) -> 88.43
A195: =A177 -> 2 | B195: =B177 -> 5 | C195: Итого за день: | F195: =F184+F194 -> 1280 | G195: =G184+G194 -> 48.13 | H195: =H184+H194 -> 50.88 | I195: =I184+I194 -> 196.35 | J195: =J184+J194 -> 1411.03 | L195: 165.39
C196: Среднее значение за период: | F196: =(F24+F43+F62+F81+F100+F119+F138+F157+F176+F195)/(IF(F24=0,0,1)+IF(F43=0,0,1)+IF(F62=0,0,1)+IF(F81=0,0,1)+IF(F100=0,0,1)+IF(F119=0,0,1)+IF(F138=0,0,1)+IF(F157=0,0,1)+IF(F176=0,0,1)+IF(F195=0,0,1)) -> 1279.3 | G196: =(G24+G43+G62+G81+G100+G119+G138+G157+G176+G195)/(IF(G24=0,0,1)+IF(G43=0,0,1)+IF(G62=0,0,1)+IF(G81=0,0,1)+IF(G100=0,0,1)+IF(G119=0,0,1)+IF(G138=0,0,1)+IF(G157=0,0,1)+IF(G176=0,0,1)+IF(G195=0,0,1)) -> 46.175 | H196: =(H24+H43+H62+H81+H100+H119+H138+H157+H176+H195)/(IF(H24=0,0,1)+IF(H43=0,0,1)+IF(H62=0,0,1)+IF(H81=0,0,1)+IF(H100=0,0,1)+IF(H119=0,0,1)+IF(H138=0,0,1)+IF(H157=0,0,1)+IF(H176=0,0,1)+IF(H195=0,0,1)) -> 42.574 | I196: 182.956 | J196: 1277.205 | L196: =(L24+L43+L62+L81+L100+L119+L138+L157+L176+L195)/(IF(L24=0,0,1)+IF(L43=0,0,1)+IF(L62=0,0,1)+IF(L81=0,0,1)+IF(L100=0,0,1)+IF(L119=0,0,1)+IF(L138=0,0,1)+IF(L157=0,0,1)+IF(L176=0,0,1)+IF(L195=0,0,1)) -> 165.39
